fUST/lending_fUST_20250901
["ID","MTS","AMOUNT","RATE_DAILY","PERIOD"]
[382734627,1756723852174,-712.47,0.00014246,2]
[382734629,1756723852182,-322.1758387,0.00014246,2]
[382734631,1756723852191,-669.24,0.00014246,2]
[382734632,1756723852200,-170.45267237,0.00014246,2]
[382734678,1756723852690,-500.0,0.0001369,2]
[382734679,1756723852700,-500.0,0.0001369,2]
[382734681,1756723852710,-500.0,0.0001369,2]
[382734683,1756723852719,-480.0,0.00013698,2]
[382734685,1756723852729,-480.0,0.00013698,2]
[382734687,1756723852738,-481.86328089,0.00013972,2]
[382734689,1756723852748,-541.89732763,0.00014246,2]
[382734691,1756723852757,-821.88,0.00014246,2]
[382734693,1756723852767,-480.0,0.00014246,2]
[382734695,1756723852776,-480.0,0.00014246,2]
[382734696,1756723852785,-480.0,0.00014246,2]
[382734698,1756723852795,-480.0,0.00014246,2]
[382734700,1756723852804,-480.0,0.00014246,2]
[382734702,1756723852814,-356.40320907,0.00014246,2]
[382734704,1756723852823,-688.11,0.00014246,2]
[382734706,1756723852833,-670.16,0.00014246,2]
[382734708,1756723852842,-602.48,0.00014246,2]
[382734710,1756723852852,-480.0,0.00014246,2]
[382734712,1756723852862,-480.0,0.00014246,2]
[382734713,1756723852871,-950.84,0.00014246,2]
[382734715,1756723852881,-480.0,0.00014246,2]
[382734717,1756723852891,-480.0,0.00014246,2]
[382734719,1756723852900,-302.14462558,0.00014246,2]
[382734721,1756723852909,-480.0,0.00014246,2]
[382734723,1756723852918,-480.0,0.00014246,2]
[382734725,1756723852928,-480.0,0.00014246,2]
[382734726,1756723852937,-480.0,0.00014246,2]
[382734728,1756723852947,-480.0,0.00014246,2]
[382734730,1756723852956,-420.91621753,0.00014246,2]
[382734732,1756723852966,-480.0,0.00014246,2]
[382734734,1756723852977,-480.0,0.00014246,2]
[382734736,1756723852986,-480.0,0.00014246,2]
[382734738,1756723852996,-480.0,0.00014246,2]
[382734740,1756723853005,-480.0,0.00014246,2]
[382734742,1756723853015,-480.0,0.00014246,2]
[382734744,1756723853025,-480.0,0.00014246,2]
[382734745,1756723853035,-480.0,0.00014246,2]
[382734747,1756723853048,-151.0,0.00014246,2]
[382734749,1756723853058,-116.00846043,0.00014246,2]
[382734768,1756723853891,-420.0,0.00013297,2]
[382739687,1756724047043,-300.0,0.00013196,2]
[382739688,1756724047073,-500.0,0.00013197,2]
[382739689,1756724047105,-500.0,0.00013197,2]
[382739690,1756724047135,-500.0,0.00013197,2]
[382739691,1756724047162,-500.0,0.00013197,2]
[382739692,1756724047193,-500.0,0.00013197,2]
[382739693,1756724047221,-500.0,0.00013197,2]
[382739694,1756724047250,-500.0,0.00013197,2]
[382739695,1756724047280,-500.0,0.00013197,2]
[382739696,1756724047312,-500.0,0.00013197,2]
[382739697,1756724047395,-500.0,0.00013197,2]
[382739698,1756724047425,-500.0,0.00013197,2]
[382739699,1756724047455,-646.55174473,0.00013197,2]
[382739700,1756724047483,-500.0,0.00013197,2]
[382739701,1756724047511,-500.0,0.00013197,2]
[382739702,1756724047542,-500.0,0.00013197,2]
[382739703,1756724047571,-500.0,0.00013197,2]
[382739704,1756724047599,-500.0,0.00013197,2]
[382739705,1756724047625,-500.0,0.00013197,2]
[382739706,1756724047652,-206.90651054,0.00013197,2]
[382739707,1756724047755,-293.09348946,0.00013197,2]
[382739708,1756724047786,-462.81128483,0.00013197,2]
[382739709,1756724047816,-500.0,0.00013197,2]
[382739710,1756724047844,-500.0,0.00013197,2]
[382739711,1756724047871,-627.08248426,0.00013197,2]
[382739712,1756724047900,-500.0,0.00013197,2]
[382739713,1756724047927,-184.55663243,0.00013197,2]
[382739714,1756724047953,-500.0,0.00013197,2]
[382739715,1756724047981,-373.07033552,0.00013197,2]
[382739716,1756724048011,-500.0,0.00013197,2]
[382739717,1756724048039,-500.10919781,0.00013197,2]
[382739718,1756724048162,-500.0,0.00013197,2]
[382739719,1756724048189,-500.0,0.00013197,2]
[382739720,1756724048218,-500.0,0.00013197,2]
[382739721,1756724048248,-500.0,0.00013197,2]
[382739722,1756724048278,-500.0,0.00013197,2]
[382739723,1756724048308,-500.0,0.00013197,2]
[382739724,1756724048337,-500.0,0.00013197,2]
[382739725,1756724048363,-500.0,0.00013197,2]
[382739726,1756724048392,-550.0,0.00013197,2]
[382739727,1756724048421,-278.54522527,0.00013197,2]
[382739728,1756724048520,-372.20290925,0.00013197,2]
[382739729,1756724048550,-500.0,0.00013197,2]
[382739730,1756724048731,-600.0,0.00013197,2]
[382739731,1756724048761,-500.0,0.00013197,2]
[382739733,1756724048792,-500.0,0.00013197,2]
[382739735,1756724048824,-500.0,0.00013197,2]
[382739736,1756724048852,-500.0,0.00013197,2]
[382739737,1756724048880,-500.0,0.00013197,2]
[382739738,1756724048909,-254.37098622,0.00013197,2]
[382739741,1756724065157,1546.86220906,0.00013066,2]
[382739742,1756724065181,3816.88495492,0.00013066,2]
[382739749,1756724103097,300.0,0.00013197,2]
[382739755,1756724133367,151.0,0.00013,2]
[382739756,1756724133739,151.0,0.000126,2]
[382739757,1756724134120,151.0,0.000123,2]
[382739758,1756724134474,151.0,0.00012,2]
[382739759,1756724134820,151.0,0.000117,2]
[382739764,1756724163132,300.0,0.00013197,2]
[382739767,1756724175924,4826.55083145,0.00013098,2]
[382739768,1756724178677,1.57421363,0.00013066,2]
[382739769,1756724178699,9998.43578637,0.00013066,2]
[382739775,1756724201803,1.57421363,0.00013066,2]
[382739776,1756724201825,9998.43578637,0.00013066,2]
[382739784,1756724225171,1.57421363,0.00013066,2]
[382739785,1756724225198,9998.43578637,0.00013066,2]
[382739790,1756724247760,1.57421363,0.00013066,2]
[382739791,1756724247782,9998.43578637,0.00013066,2]
[382739795,1756724271397,1.57421363,0.00013066,2]
[382739796,1756724271423,9998.43578637,0.00013066,2]
[382739799,1756724287385,1.57421363,0.00012596,2]
[382739800,1756724287406,9998.42578637,0.00012596,2]
[382739802,1756724295934,1.58421363,0.00013066,2]
[382739803,1756724295956,7065.96578637,0.00013066,2]
[382739809,1756724318956,2934.04421363,0.00013066,2]
[382739810,1756724318979,10000.01,0.00013066,2]
[382739811,1756724319000,7065.96578637,0.00013066,2]
[382739815,1756724342013,2934.04421363,0.00013066,2]
[382739816,1756724342037,10000.01,0.00013066,2]
[382739817,1756724342063,7065.96578637,0.00013066,2]
[382739821,1756724355939,500.0,0.00013197,2]
[382739822,1756724356093,500.0,0.00013197,2]
[382739823,1756724356203,347.16089935,0.00013197,2]
[382739825,1756724366619,1586.88331428,0.00013066,2]
[382739826,1756724366640,10000.01,0.00013066,2]
[382739827,1756724366663,6520.20573006,0.00013066,2]
[382739829,1756724373977,463.22641616,0.00013197,2]
[382739830,1756724375238,500.0,0.00013197,2]
[382739831,1756724375275,216.04100124,0.00013197,2]
[382739832,1756724375304,500.0,0.00013197,2]
[382739833,1756724375340,221.69087356,0.00013197,2]
[382739834,1756724375369,500.0,0.00013197,2]
[382739835,1756724375402,500.0,0.00013197,2]
[382739836,1756724375468,578.84597898,0.00013197,2]
[382739837,1756724375489,54.83033809,0.00013197,2]
[382739839,1756724379439,229.47982718,0.00012802,2]
[382739840,1756724380158,197.96162446,0.00013197,2]
[382739841,1756724380192,449.03076649,0.00013197,2]
[382739842,1756724380225,500.0,0.00013197,2]
[382739843,1756724380268,157.56108697,0.00013197,2]
[382739845,1756724392050,278.10745384,0.00013197,2]
[382739848,1756724392986,500.0,0.00013197,2]
[382739849,1756724393017,382.96702609,0.00013197,2]
[382739850,1756724393051,500.0,0.00013197,2]
[382739851,1756724393081,500.0,0.00013197,2]
[382739852,1756724393125,500.0,0.00013197,2]
[382739853,1756724393198,500.0,0.00013197,2]
[382739854,1756724393358,500.0,0.00013197,2]
[382739855,1756724394820,666.0,0.00012596,2]
[382739857,1756724403527,300.0,0.00013197,2]
[382739861,1756724410062,531.17007685,0.00013197,2]
[382739864,1756724424151,500.0,0.00013198,2]
[382739865,1756724425202,500.0,0.00013198,2]
[382739866,1756724425944,500.0,0.00013198,2]
[382739867,1756724426896,500.0,0.00013198,2]
[382739868,1756724428255,500.0,0.00013198,2]
[382739870,1756724428957,500.0,0.00013198,2]
[382739871,1756724429716,500.0,0.00013198,2]
[382739872,1756724430455,500.0,0.00013198,2]
[382739879,1756724462602,159.99477125,0.00013026,2]
[382739888,1756724516781,3861.24066516,0.00013098,2]
[382739890,1756724522858,159.99477124,0.00013017,2]
[382739897,1756724559381,5818.77979235,0.000131,2]
[382739898,1756724559404,10000.01,0.000131,2]
[382739899,1756724559425,10000.01,0.000131,2]
[382739900,1756724559447,10000.01,0.000131,2]
[382739901,1756724559467,10000.01,0.000131,2]
[382739902,1756724559488,10000.01,0.000131,2]
[382739903,1756724559510,10000.01,0.000131,2]
[382739904,1756724559531,10000.01,0.000131,2]
[382739905,1756724559551,2887.97145846,0.000131,2]
[382739908,1756724581989,7112.03854154,0.000131,2]
[382739909,1756724582013,10000.01,0.000131,2]
[382739910,1756724582034,10000.01,0.000131,2]
[382739911,1756724582055,2887.94145846,0.000131,2]
[382739913,1756724592830,7112.06854154,0.000131,2]
[382739914,1756724592853,10000.01,0.000131,2]
[382739915,1756724592876,2887.92145846,0.000131,2]
[382739944,1756724709725,160.0,0.00021274,30]
[382739947,1756724857097,3088.99253212,0.00013098,2]
[382739949,1756725018700,500.0,0.0001319,2]
[382739950,1756725019465,500.0,0.0001319,2]
[382739951,1756725020074,500.0,0.0001319,2]
[382739952,1756725020708,500.0,0.0001319,2]
[382739953,1756725021434,551.19097769,0.0001319,2]
[382739954,1756725027292,151.0158493,0.0001319,2]
[382740068,1756725038493,-300.0,0.00013197,2]
[382740070,1756725038503,-1705.41486483,0.00013198,2]
[382740072,1756725038515,-21.45982921,0.00013198,2]
[382740074,1756725038524,-2205.35329314,0.00013198,2]
[382740076,1756725038537,-15802.96920826,0.00013198,2]
[382740079,1756725038554,-351991.6774986,0.00013198,2]
[382740081,1756725038563,-157.14661163,0.00013198,2]
[382740083,1756725038573,-151.0,0.000133,2]
[382740085,1756725038582,-3088.99253209,0.00013354,2]
[382740087,1756725038591,-300.0,0.00013461,2]
[382740089,1756725038600,-300.0,0.00013461,2]
[382740091,1756725038609,-300.0,0.00013461,2]
[382740093,1756725038619,-300.0,0.00013461,2]
[382740095,1756725038629,-300.0,0.00013461,2]
[382740097,1756725038638,-300.0,0.00013461,2]
[382740099,1756725038648,-300.0,0.00013461,2]
[382740101,1756725038661,-300.0,0.00013461,2]
[382740103,1756725038671,-300.0,0.00013461,2]
[382740105,1756725038680,-300.0,0.00013461,2]
[382740107,1756725038689,-300.0,0.00013461,2]
[382740109,1756725038699,-300.0,0.00013461,2]
[382740111,1756725038709,-300.0,0.00013461,2]
[382740113,1756725038719,-300.0,0.00013461,2]
[382740115,1756725038728,-300.0,0.00013461,2]
[382740117,1756725038738,-600.0,0.00013461,2]
[382740119,1756725038748,-151.0,0.00013507,2]
[382740121,1756725038757,-500.0,0.00013507,2]
[382740123,1756725038767,-151.0,0.00013507,2]
[382740125,1756725038776,-1017.0,0.00013507,2]
[382740127,1756725038785,-151.0,0.00013507,2]
[382740129,1756725038794,-156.587,0.00013507,2]
[382740131,1756725038804,-151.0,0.00013507,2]
[382740133,1756725038814,-151.0,0.00013507,2]
[382740135,1756725038823,-151.0,0.00013507,2]
[382740137,1756725038832,-153.38734499,0.00013507,2]
[382740139,1756725038841,-250.0,0.00013507,2]
[382740141,1756725038850,-2524.82941417,0.00013507,2]
[382740143,1756725038859,-250.0,0.00013507,2]
[382740145,1756725038868,-250.0,0.00013507,2]
[382740147,1756725038877,-201.93286099,0.00013507,2]
[382740148,1756725038886,-250.0,0.00013507,2]
[382740150,1756725038896,-250.0,0.00013507,2]
[382740152,1756725038907,-250.0,0.00013507,2]
[382740154,1756725038917,-151.0,0.00013507,2]
[382740156,1756725038926,-151.0,0.00013507,2]
[382740158,1756725038936,-250.0,0.00013507,2]
[382740160,1756725038946,-151.0,0.00013507,2]
[382740162,1756725038955,-250.0,0.00013507,2]
[382740164,1756725038965,-250.0,0.00013507,2]
[382740166,1756725038975,-151.0,0.00013507,2]
[382740168,1756725038984,-250.0,0.00013507,2]
[382740170,1756725038993,-151.0,0.00013507,2]
[382740172,1756725039003,-250.0,0.00013507,2]
[382740174,1756725039012,-250.0,0.00013507,2]
[382740176,1756725039021,-151.0,0.00013507,2]
[382740178,1756725039031,-250.0,0.00013507,2]
[382740180,1756725039040,-151.0,0.00013507,2]
[382740182,1756725039049,-151.0,0.00013507,2]
[382740184,1756725039058,-250.0,0.00013507,2]
[382740186,1756725039067,-250.0,0.00013507,2]
[382740188,1756725039076,-151.0,0.00013507,2]
[382740190,1756725039085,-151.0,0.00013507,2]
[382740192,1756725039094,-250.0,0.00013507,2]
[382740194,1756725039103,-250.0,0.00013507,2]
[382740196,1756725039113,-151.0,0.00013507,2]
[382740198,1756725039122,-151.0,0.00013507,2]
[382740200,1756725039133,-250.0,0.00013507,2]
[382740202,1756725039142,-151.0,0.00013507,2]
[382740204,1756725039151,-151.0,0.00013507,2]
[382740206,1756725039163,-151.0,0.00013507,2]
[382740208,1756725039173,-271.44144963,0.00013507,2]
[382740210,1756725039182,-151.0,0.00013507,2]
[382740212,1756725039192,-250.0,0.00013507,2]
[382740214,1756725039202,-151.0,0.00013507,2]
[382740216,1756725039212,-151.0,0.00013507,2]
[382740218,1756725039221,-250.0,0.00013507,2]
[382740220,1756725039231,-151.0,0.00013507,2]
[382740222,1756725039240,-151.0,0.00013507,2]
[382740224,1756725039251,-151.0,0.00013507,2]
[382740226,1756725039260,-250.0,0.00013507,2]
[382740227,1756725039269,-151.0,0.00013507,2]
[382740229,1756725039279,-151.0,0.00013507,2]
[382740231,1756725039288,-151.0,0.00013507,2]
[382740233,1756725039297,-250.0,0.00013507,2]
[382740235,1756725039307,-250.0,0.00013507,2]
[382740237,1756725039316,-151.0,0.00013507,2]
[382740239,1756725039325,-151.0,0.00013507,2]
[382740241,1756725039335,-151.0,0.00013507,2]
[382740243,1756725039348,-151.0,0.00013507,2]
[382740245,1756725039357,-250.0,0.00013507,2]
[382740247,1756725039366,-151.0,0.00013507,2]
[382740249,1756725039375,-250.0,0.00013507,2]
[382740251,1756725039385,-151.0,0.00013507,2]
[382740253,1756725039394,-151.0,0.00013507,2]
[382740255,1756725039405,-250.0,0.00013507,2]
[382740257,1756725039415,-250.0,0.00013507,2]
[382740259,1756725039425,-151.0,0.00013507,2]
[382740261,1756725039436,-151.0,0.00013507,2]
[382740263,1756725039444,-151.0,0.00013507,2]
[382740265,1756725039454,-151.0,0.00013507,2]
[382740267,1756725039463,-220.7224137,0.00013507,2]
[382740268,1756725039472,-151.0,0.00013507,2]
[382740269,1756725039481,-151.0,0.00013507,2]
[382740270,1756725039489,-258.08060482,0.00013507,2]
[382740271,1756725039498,-151.0,0.00013507,2]
[382740272,1756725039507,-151.0,0.00013507,2]
[382740273,1756725039516,-151.0,0.00013507,2]
[382740274,1756725039525,-151.0,0.00013507,2]
[382740275,1756725039534,-151.0,0.00013507,2]
[382740276,1756725039543,-1000.0,0.00013507,2]
[382740277,1756725039551,-151.0,0.00013507,2]
[382740278,1756725039561,-151.0,0.00013507,2]
[382740279,1756725039571,-1000.0,0.00013507,2]
[382740280,1756725039580,-1000.0,0.00013507,2]
[382740281,1756725039590,-151.0,0.00013507,2]
[382740282,1756725039598,-1000.0,0.00013507,2]
[382740283,1756725039607,-151.0,0.00013507,2]
[382740284,1756725039617,-1000.0,0.00013507,2]
[382740285,1756725039627,-250.0,0.00013507,2]
[382740286,1756725039637,-1000.0,0.00013507,2]
[382740287,1756725039648,-151.0,0.00013507,2]
[382740288,1756725039659,-250.0,0.00013507,2]
[382740289,1756725039669,-1000.0,0.00013507,2]
[382740290,1756725039678,-151.0,0.00013507,2]
[382740291,1756725039688,-250.0,0.00013507,2]
[382740292,1756725039698,-1000.0,0.00013507,2]
[382740293,1756725039708,-151.0,0.00013507,2]
[382740294,1756725039717,-500.0,0.00013507,2]
[382740295,1756725039728,-250.0,0.00013507,2]
[382740296,1756725039738,-1000.0,0.00013507,2]
[382740297,1756725039748,-151.0,0.00013507,2]
[382740299,1756725039759,-500.0,0.00013507,2]
[382740301,1756725039769,-1000.0,0.00013507,2]
[382740303,1756725039778,-250.0,0.00013507,2]
[382740305,1756725039788,-151.0,0.00013507,2]
[382740307,1756725039797,-500.0,0.00013507,2]
[382740309,1756725039808,-151.0,0.00013507,2]
[382740311,1756725039817,-1000.0,0.00013507,2]
[382740313,1756725039826,-250.0,0.00013507,2]
[382740315,1756725039836,-500.0,0.00013507,2]
[382740317,1756725039846,-152.31370629,0.00013507,2]
[382740319,1756725039856,-1000.0,0.00013507,2]
[382740321,1756725039866,-250.0,0.00013507,2]
[382740323,1756725039876,-500.0,0.00013507,2]
[382740325,1756725039886,-250.0,0.00013507,2]
[382740327,1756725039897,-1000.0,0.00013507,2]
[382740329,1756725039909,-500.0,0.00013507,2]
[382740331,1756725039919,-1000.0,0.00013507,2]
[382740333,1756725039929,-500.0,0.00013507,2]
[382740335,1756725039939,-250.0,0.00013507,2]
[382740337,1756725039948,-1000.0,0.00013507,2]
[382740339,1756725039958,-500.0,0.00013507,2]
[382740341,1756725039967,-250.0,0.00013507,2]
[382740343,1756725039976,-1000.0,0.00013507,2]
[382740346,1756725039985,-500.0,0.00013507,2]
[382740349,1756725039995,-250.0,0.00013507,2]
[382740351,1756725040004,-1000.0,0.00013507,2]
[382740353,1756725040013,-250.0,0.00013507,2]
[382740355,1756725040022,-500.0,0.00013507,2]
[382740357,1756725040032,-500.0,0.00013507,2]
[382740359,1756725040041,-2618.2481025,0.00013562,2]
[382740362,1756725040051,-151.0,0.000136,2]
[382740364,1756725040059,-3088.99253209,0.0001361,2]
[382740366,1756725040069,-2715.12328229,0.00013617,2]
[382740368,1756725040078,-5450.67724866,0.00013635,2]
[382740370,1756725040087,-1797.11771323,0.00013672,2]
[382740372,1756725040097,-500.0,0.00013673,2]
[382740374,1756725040107,-500.0,0.00013673,2]
[382740376,1756725040116,-500.0,0.00013673,2]
[382740379,1756725040127,-500.0,0.00013673,2]
[382740381,1756725040137,-501.40795839,0.00013673,2]
[382740383,1756725040148,-162.32848625,0.00013673,2]
[382740384,1756725040159,-500.0,0.00013673,2]
[382740386,1756725040169,-390.26996667,0.00013673,2]
[382740388,1756725040179,-500.0,0.00013673,2]
[382740390,1756725040189,-409.94293439,0.00013673,2]
[382740392,1756725040199,-500.0,0.00013673,2]
[382740394,1756725040210,-500.0,0.00013673,2]
[382740396,1756725040219,-500.0,0.00013673,2]
[382740398,1756725040228,-500.0,0.00013673,2]
[382740400,1756725040237,-250.0,0.00013677,2]
[382740402,1756725040246,-435.60249108,0.00013698,2]
[382740404,1756725040255,-480.0,0.00013698,2]
[382740406,1756725040264,-484.0963283,0.00013698,2]
[382740408,1756725040274,-480.0,0.00013698,2]
[382740410,1756725040286,-761.66,0.00013698,2]
[382740412,1756725040296,-480.0,0.00013698,2]
[382740414,1756725040305,-480.0,0.00013698,2]
[382740416,1756725040314,-480.0,0.00013698,2]
[382740418,1756725040323,-481.0238034,0.00013698,2]
[382740420,1756725040333,-480.0,0.00013698,2]
[382740422,1756725040345,-480.0,0.00013698,2]
[382740424,1756725040354,-480.0,0.00013698,2]
[382740426,1756725040363,-480.0,0.00013698,2]
[382740428,1756725040372,-481.78947905,0.00013698,2]
[382740430,1756725040382,-480.0,0.00013698,2]
[382740432,1756725040390,-458.28482953,0.00013698,2]
[382740434,1756725040399,-480.0,0.00013698,2]
[382740436,1756725040412,-480.0,0.00013698,2]
[382740438,1756725040421,-480.0,0.00013698,2]
[382740440,1756725040430,-480.0,0.00013698,2]
[382740442,1756725040439,-481.63209188,0.00013698,2]
[382740469,1756725040448,-461.95064771,0.00013698,2]
[382740471,1756725040663,-480.0,0.00013698,2]
[382740473,1756725040672,-480.0,0.00013698,2]
[382740475,1756725040681,-480.0,0.00013698,2]
[382740477,1756725040690,-482.06845669,0.00013698,2]
[382740479,1756725040699,-482.01937465,0.00013698,2]
[382740481,1756725040708,-577.37,0.00013698,2]
[382740483,1756725040718,-480.0,0.00013698,2]
[382740485,1756725040727,-480.0,0.00013698,2]
[382740487,1756725040736,-458.75755418,0.00013698,2]
[382740489,1756725040746,-481.10223775,0.00013698,2]
[382740491,1756725040755,-480.0,0.00013698,2]
[382740493,1756725040765,-480.0,0.00013698,2]
[382740495,1756725040774,-482.02245497,0.00013698,2]
[382740497,1756725040783,-439.02496402,0.00013698,2]
[382740499,1756725040793,-480.0,0.00013698,2]
[382740501,1756725040802,-480.0,0.00013698,2]
[382740503,1756725040812,-412.24149427,0.00013698,2]
[382740505,1756725040822,-480.0,0.00013698,2]
[382740507,1756725040832,-480.0,0.00013698,2]
[382740509,1756725040843,-480.0,0.00013698,2]
[382740511,1756725040852,-480.0,0.00013698,2]
[382740513,1756725040862,-480.0,0.00013698,2]
[382740515,1756725040871,-480.0,0.00013698,2]
[382740517,1756725040880,-480.0,0.00013698,2]
[382740519,1756725040890,-480.0,0.00013698,2]
[382740521,1756725040899,-480.0,0.00013698,2]
[382740523,1756725040911,-480.0,0.00013698,2]
[382740525,1756725040920,-480.0,0.00013698,2]
[382740527,1756725040929,-641.35,0.00013698,2]
[382740529,1756725040939,-480.0,0.00013698,2]
[382740531,1756725040948,-480.0,0.00013698,2]
[382740533,1756725040957,-480.0,0.00013698,2]
[382740535,1756725040966,-480.0,0.00013698,2]
[382740537,1756725040976,-480.0,0.00013698,2]
[382740539,1756725040985,-480.0,0.00013698,2]
[382740541,1756725040995,-480.0,0.00013698,2]
[382740543,1756725041005,-480.0,0.00013698,2]
[382740545,1756725041015,-480.0,0.00013698,2]
[382740547,1756725041023,-1175.5,0.00013698,2]
[382740549,1756725041033,-480.0,0.00013698,2]
[382740551,1756725041042,-911.22,0.00013698,2]
[382740553,1756725041051,-480.0,0.00013698,2]
[382740555,1756725041060,-463.39145523,0.00013698,2]
[382740557,1756725041070,-483.25609583,0.00013698,2]
[382740559,1756725041079,-480.0,0.00013698,2]
[382740561,1756725041088,-480.0,0.00013698,2]
[382740563,1756725041098,-480.0,0.00013698,2]
[382740565,1756725041108,-480.0,0.00013698,2]
[382740567,1756725041118,-930.18,0.00013698,2]
[382740569,1756725041128,-480.0,0.00013698,2]
[382740571,1756725041137,-480.0,0.00013698,2]
[382740573,1756725041147,-480.0,0.00013698,2]
[382740575,1756725041156,-481.38516802,0.00013698,2]
[382740577,1756725041166,-1019.25,0.00013698,2]
[382740579,1756725041175,-480.0,0.00013698,2]
[382740581,1756725041184,-908.81,0.00013698,2]
[382740583,1756725041193,-480.0,0.00013698,2]
[382740585,1756725041202,-480.0,0.00013698,2]
[382740587,1756725041211,-480.0,0.00013698,2]
[382740589,1756725041220,-480.0,0.00013698,2]
[382740591,1756725041230,-480.0,0.00013698,2]
[382740593,1756725041239,-480.0,0.00013698,2]
[382740595,1756725041248,-480.0,0.00013698,2]
[382740597,1756725041258,-480.0,0.00013698,2]
[382740599,1756725041267,-480.0,0.00013698,2]
[382740601,1756725041277,-480.0,0.00013698,2]
[382740603,1756725041287,-480.0,0.00013698,2]
[382740605,1756725041296,-702.31,0.00013698,2]
[382740607,1756725041305,-480.0,0.00013698,2]
[382740608,1756725041314,-480.0,0.00013698,2]
[382740610,1756725041325,-448.19095112,0.00013698,2]
[382740613,1756725041335,-559.85,0.00013698,2]
[382740614,1756725041349,-480.0,0.00013698,2]
[382740616,1756725041358,-480.0,0.00013698,2]
[382740618,1756725041367,-481.64271792,0.00013698,2]
[382740620,1756725041376,-480.0,0.00013698,2]
[382740622,1756725041386,-480.0,0.00013698,2]
[382740624,1756725041395,-480.0,0.00013698,2]
[382740626,1756725041406,-295.55875626,0.00013698,2]
[382740628,1756725041417,-480.0,0.00013698,2]
[382740630,1756725041426,-911.72,0.00013698,2]
[382740632,1756725041435,-480.0,0.00013698,2]
[382740634,1756725041444,-480.0,0.00013698,2]
[382740636,1756725041454,-480.0,0.00013698,2]
[382740638,1756725041463,-480.0,0.00013698,2]
[382740640,1756725041474,-480.0,0.00013698,2]
[382740642,1756725041483,-461.33591421,0.00013698,2]
[382740644,1756725041493,-480.0,0.00013698,2]
[382740646,1756725041503,-295.12593839,0.00013698,2]
[382740648,1756725041512,-480.0,0.00013698,2]
[382740650,1756725041522,-490.4360983,0.00013698,2]
[382740652,1756725041531,-480.0,0.00013698,2]
[382740654,1756725041540,-273.32416421,0.00013698,2]
[382740656,1756725041549,-480.0,0.00013698,2]
[382740658,1756725041559,-715.05,0.00013698,2]
[382740660,1756725041568,-480.0,0.00013698,2]
[382740662,1756725041577,-480.0,0.00013698,2]
[382740664,1756725041587,-482.83658517,0.00013698,2]
[382740666,1756725041597,-480.0,0.00013698,2]
[382740668,1756725041607,-480.0,0.00013698,2]
[382740670,1756725041616,-480.0,0.00013698,2]
[382740671,1756725041625,-480.00000001,0.00013698,2]
[382740673,1756725041634,-480.0,0.00013698,2]
[382740675,1756725041644,-850.26,0.00013698,2]
[382740677,1756725041653,-480.0,0.00013698,2]
[382740679,1756725041664,-480.0,0.00013698,2]
[382740681,1756725041673,-480.0,0.00013698,2]